fUSD/lending_fUSD_20240620
["ID","MTS","AMOUNT","RATE_DAILY","PERIOD"]
[330000025,1718911838808,-134.33238226,0.00012182,2]
[330000026,1718911838818,-69152.22896226,0.00013106,2]
[330000027,1718911838831,-259.79166223,0.00013106,2]
[330000028,1718911838844,-1019.57625635,0.00013106,2]
[330000029,1718911838940,-409700.82625381,0.00013106,2]
[330000030,1718911838952,-1449.16849372,0.00013106,2]
[330000031,1718911838964,-2948.00079467,0.00013106,2]
[330000032,1718911838976,-39554.24546959,0.00013106,2]
[330000033,1718911838988,-410.0,0.00013106,2]
[330000034,1718911839000,-5011.6,0.00013106,2]
[330000035,1718911839012,-1449.45095012,0.00013106,2]
[330000129,1718911840653,-548.43,0.00011698,2]
[330000130,1718911840989,-2278.66682855,0.00011698,2]
[330000132,1718911841000,-9541.63187721,0.00013106,2]
[330000279,1718911843956,-837.93466786,0.00013106,2]
[330000312,1718912030726,392.71,0.00010722,2]
[330000315,1718912181991,500.0,0.00026,90]
[330000318,1718912417085,529.49575669,0.00010933,2]
[330000319,1718912550552,150.5,0.00013096,30]
[330000320,1718912551075,150.71,0.00013086,30]
[330000321,1718912587991,373.07,0.000104,2]
[330000322,1718912670308,280.23,0.00013096,30]
[330000341,1718913032430,-250.0,0.00012088,2]
[330000342,1718913032440,-157.13383188,0.00012154,2]
[330000343,1718913032451,-250.0,0.00012155,2]
[330000344,1718913032461,-371.47,0.00012186,2]
[330000345,1718913032471,-529.49575669,0.00012248,2]
[330000346,1718913032480,-640.0,0.00012316,2]
[330000347,1718913032490,-360.0,0.00012583,2]
[330000348,1718913032499,-383.3117566,0.0001266,2]
[330000349,1718913032508,-373.07,0.00012664,2]
[330000350,1718913032519,-414.50144157,0.0001267,2]
[330000351,1718913032528,-499.99,0.0001271,2]
[330000352,1718913032538,-1000.0,0.00013,2]
[330000353,1718913032548,-200.0,0.00013001,2]
[330000354,1718913032557,-500.0,0.00013001,2]
[330000355,1718913032567,-150.0,0.00013004,2]
[330000356,1718913032576,-300.0,0.00013005,2]
[330000357,1718913032585,-4459.7535889,0.00013006,2]
[330000358,1718913032597,-5657.59171755,0.00013006,2]
[330000359,1718913032670,-3403.06007984,0.00013006,2]
[330000360,1718913032679,-418.57870781,0.00013006,2]
[330000361,1718913032689,-316.98370203,0.00013006,2]
[330000362,1718913032698,-1069.69,0.00013006,2]
[330000363,1718913032708,-93.21760999,0.00013006,2]
[330000364,1718913032720,-310.33447196,0.00013006,2]
[330000365,1718913032731,-726.25927746,0.00013006,2]
[330000366,1718913032743,-1936.75276464,0.00013006,2]
[330000367,1718913032759,-1202.30797595,0.00013006,2]
[330000368,1718913032769,-10000.0,0.00013007,2]
[330000369,1718913032779,-1000.0,0.00013007,2]
[330000370,1718913032788,-195.60295777,0.00013007,2]
[330000371,1718913032798,-846.569426,0.00013007,2]
[330000372,1718913032807,-6253.15176412,0.00013007,2]
[330000373,1718913032816,-190.89220396,0.00013007,2]
[330000374,1718913032825,-219.97,0.00013014,3]
[330000375,1718913032835,-150.0,0.00013052,2]
[330000376,1718913032845,-150.0,0.00013052,2]
[330000377,1718913032854,-150.0,0.00013052,2]
[330000378,1718913032863,-150.0,0.00013052,2]
[330000379,1718913032873,-2373.1700286,0.00013076,2]
[330000380,1718913032885,-332.5139031,0.00013096,2]
[330000382,1718913032894,-332.5139031,0.00013096,2]
[330000384,1718913032904,-332.5139031,0.00013096,2]
[330000385,1718913032913,-9080.8875025,0.00013097,2]
[330000386,1718913032922,-3571.799092,0.00013097,2]
[330000387,1718913032931,-1567.5986344,0.00013097,2]
[330000388,1718913032941,-101821.1383125,0.00013097,2]
[330000389,1718913032950,-1130.0,0.000131,2]
[330000390,1718913032960,-150.0,0.00013105,2]
[330000392,1718913032969,-3227.47,0.00013105,2]
[330000393,1718913032983,-3227.47,0.00013105,2]
[330000394,1718913032992,-3227.47,0.00013105,2]
[330000395,1718913033001,-3227.47,0.00013105,2]
[330000396,1718913033011,-852.81772105,0.00013105,2]
[330000397,1718913033023,-845.39999995,0.00013105,2]
[330000398,1718913033056,-1529.252279,0.00013105,2]
[330000399,1718913033066,-3227.47,0.00013105,2]
[330000400,1718913033075,-3227.47,0.00013105,2]
[330000401,1718913033084,-3227.47,0.00013105,2]
[330000402,1718913033094,-3227.47,0.00013105,2]
[330000403,1718913033103,-3227.47,0.00013105,2]
[330000404,1718913033112,-3227.47,0.00013105,2]
[330000405,1718913033121,-3227.47,0.00013105,2]
[330000406,1718913033133,-3227.47,0.00013105,2]
[330000407,1718913033142,-174.26384901,0.00013105,2]
[330000408,1718913033154,-935.11650011,0.00013105,2]
[330000411,1718913038382,-630.32,0.00013105,2]
[330000412,1718913038436,-1298.31390285,0.00013105,2]
[330000413,1718913038449,-189.45574803,0.00013105,2]
[330000414,1718913038460,-896.44045197,0.00013105,2]
[330000415,1718913038473,-2331.02954803,0.00013105,2]
[330000416,1718913038483,-3227.47,0.00013105,2]
[330000417,1718913038495,-3227.47,0.00013105,2]
[330000418,1718913038506,-3227.47,0.00013105,2]
[330000419,1718913038516,-567.91385916,0.00013105,2]
[330000420,1718913038529,-446.9083603,0.00013105,2]
[330000421,1718913038546,-2212.64778054,0.00013105,2]
[330000422,1718913038556,-563.42962795,0.00013105,2]
[330000423,1718913038569,-418.65164768,0.00013105,2]
[330000424,1718913038604,-2237.50383663,0.00013105,2]
[330000425,1718913038617,-7.88488774,0.00013105,2]
[330000426,1718913038628,-745.61526226,0.00013105,2]
[330000427,1718913038644,-1579.841844,0.00013105,2]
[330000435,1718913038722,-902.01289374,0.00013105,2]
[330000437,1718913038733,-3227.47,0.00013105,2]
[330000439,1718913038744,-3227.47,0.00013105,2]
[330000442,1718913038754,-3227.62,0.00013105,2]
[330000444,1718913038764,-520.0,0.00013106,2]
[330000446,1718913038774,-1604.07622575,0.00013106,2]
[330000509,1718913040503,-819.68910007,0.00013106,2]
[330000510,1718913040517,-1314.20919046,0.00013106,2]
[330000511,1718913040530,-657.80939958,0.00013106,2]
[330000512,1718913040543,-166383.156754,0.00013106,2]
[330000513,1718913040554,-7300.85274943,0.00013106,2]
[330000514,1718913040566,-5781.22256313,0.00013106,2]
[330000515,1718913040578,-1491.09837849,0.00013106,2]
[330000516,1718913040602,-10813.14,0.00013106,2]
[330000517,1718913040615,-96902.00836011,0.00013106,2]
[330000518,1718913040627,-365.57926024,0.00013106,2]
[330000519,1718913040641,-1301.90749695,0.00013106,2]
[330000520,1718913040653,-2776.36303042,0.00013106,2]
[330000521,1718913040666,-2435.38767799,0.00013106,2]
[330000522,1718913040678,-1053.98522685,0.00013106,2]
[330000523,1718913040691,-764.83570451,0.00013106,2]
[330000524,1718913040715,-468.13174385,0.00013106,2]
[330000525,1718913040728,-118334.92319555,0.00013106,2]
[330000526,1718913040741,-564.56499991,0.00013106,2]
[330000528,1718913041075,-733.43999999,0.00013106,2]
[330000530,1718913041087,-1385.68,0.00013106,2]
[330000531,1718913041098,-3775027.00288332,0.00013106,2]
[330000532,1718913041108,-3000.0,0.00013106,2]
[330000533,1718913041118,-92257.14574141,0.00013107,2]
[330000534,1718913041150,-866498.69289049,0.00013107,2]
[330000547,1718913043418,-165.60822621,0.00012054,2]
[330000548,1718913043430,-121.04577379,0.00013107,2]
[330000549,1718913043443,-412.1753019,0.00013107,2]
[330000550,1718913043454,-296.13443335,0.00013107,2]
[330000551,1718913043465,-600.42032532,0.00013107,2]
[330000552,1718913043476,-3468.12070833,0.00013107,2]
[330000553,1718913043487,-7021.27211264,0.00013107,2]
[330000554,1718913043505,-12140.63949168,0.00013107,2]
[330000555,1718913043516,-668.90836217,0.00013107,2]
[330000556,1718913043528,-866.09290291,0.00013107,2]
[330000557,1718913043539,-3964.25809127,0.00013107,2]
[330000558,1718913043550,-2093.79820878,0.00013107,2]
[330000559,1718913043561,-19893.89224472,0.00013107,2]
[330000560,1718913043572,-348.04079335,0.00013107,2]
[330000561,1718913043583,-1098.83817205,0.00013107,2]
[330000562,1718913043594,-2340.0,0.00013107,2]
[330000563,1718913043617,-647.5444773,0.00013107,2]
[330000564,1718913043629,-894.94691135,0.00013107,2]
[330000565,1718913043644,-605.70812265,0.00013107,2]
[330000566,1718913043655,-30605.72282231,0.00013107,2]
[330000567,1718913043667,-1511.16591522,0.00013107,2]
[330000568,1718913043678,-353.80775204,0.00013107,2]
[330000569,1718913043688,-7916.00000007,0.00013107,2]
[330000570,1718913043703,-772.1299993,0.00013107,2]
[330000571,1718913043715,-716.30002,0.00013107,2]
[330000572,1718913043726,-336.27840999,0.00013107,2]
[330000573,1718913043738,-357.69482547,0.00013107,2]
[330000574,1718913043749,-840.5182671,0.00013107,2]
[330000575,1718913043764,-7399.99999996,0.00013107,2]
[330000576,1718913043776,-4445.23740939,0.00013107,2]
[330000577,1718913043787,-39921.38143636,0.00013107,2]
[330000578,1718913043814,-595.805002,0.00013107,2]
[330000579,1718913043826,-2442395.46307533,0.00013107,2]
[330000580,1718913043836,-596.90903168,0.00013299,2]
[330000581,1718913043845,-1377.0,0.000133,2]
[330000582,1718913043854,-4449.51330229,0.00013516,2]
[330000583,1718913043863,-532.14539917,0.00013516,2]
[330000584,1718913043872,-359.0,0.00013517,2]
[330000585,1718913043882,-1271.0,0.00013517,2]
[330000586,1718913043892,-1830.0,0.00013517,2]
[330000587,1718913043902,-166.0,0.00013517,2]
[330000588,1718913043911,-1654.0,0.00013517,2]
[330000589,1718913043921,-813.0,0.00013517,2]
[330000590,1718913043930,-617.0,0.00013517,2]
[330000591,1718913043939,-2411.0,0.00013517,2]
[330000592,1718913043948,-447.0,0.00013517,2]
[330000595,1718913043958,-150.0,0.00013517,2]
[330000597,1718913043975,-1303.0,0.00013517,2]
[330000598,1718913043984,-3199.0,0.00013517,2]
[330000599,1718913043993,-547.0,0.00013517,2]
[330000600,1718913044003,-1983.0,0.00013517,2]
[330000601,1718913044012,-5796.0,0.00013517,2]
[330000602,1718913044023,-290.0,0.00013517,2]
[330000603,1718913044032,-1660.0,0.00013517,2]
[330000604,1718913044042,-5161.0,0.00013517,2]
[330000605,1718913044052,-264.847,0.00013517,2]
[330000606,1718913044061,-154.996,0.00013517,2]
[330000607,1718913044070,-200.0,0.00013517,2]
[330000608,1718913044079,-153.028,0.00013517,2]
[330000609,1718913044088,-200.0,0.00013699,2]
[330000610,1718913044097,-200.0,0.00013699,2]
[330000611,1718913044107,-1000.0,0.00013699,2]
[330000612,1718913044116,-195.62,0.00013699,2]
[330000613,1718913044125,-150.0,0.000137,2]
[330000614,1718913044135,-155.0,0.00013789,2]
[330000615,1718913044145,-342.47512655,0.00013799,2]
[330000616,1718913044155,-342.47512652,0.00013799,2]
[330000617,1718913044164,-342.47512652,0.00013799,2]
[330000618,1718913044173,-342.47512652,0.00013799,2]
[330000619,1718913044183,-155.33348681,0.00013799,2]
[330000620,1718913044192,-47442.36930431,0.000138,2]
[330000621,1718913044201,-405.39025304,0.00013854,2]
[330000622,1718913044210,-304.86533253,0.00013854,2]
[330000623,1718913044221,-640.0,0.00013855,2]
[330000624,1718913044230,-292.03381711,0.00013859,2]
[330000625,1718913044240,-13520.40538622,0.00013905,2]
[330000626,1718913044249,-537.17043537,0.0001394,2]
[330000627,1718913044259,-6253.1517641,0.00013954,2]
[330000628,1718913044268,-190.89220396,0.00013954,2]
[330000629,1718913044277,-519.73257743,0.00013971,2]
[330000630,1718913044286,-1500.0,0.00013972,2]
[330000631,1718913044295,-1024.369408,0.00013973,2]
[330000632,1718913044304,-943.70873254,0.0001399,2]
[330000633,1718913044313,-368.24687381,0.00013999,2]
[330000634,1718913044324,-685.94249206,0.00013999,2]
[330000635,1718913044334,-1168059.88065524,0.00014,2]
[330000636,1718913044344,-113114.67313188,0.00014,2]
[330000637,1718913044353,-153857.95278799,0.00014,2]
[330000645,1718913046459,-150.08770528,0.00013006,2]
[330000646,1718913046470,-707.12129754,0.00014,2]
[330000647,1718913046481,-5431.80207262,0.00014,2]
[330000648,1718913046490,-237.948708,0.00014,2]
[330000649,1718913046500,-151.0,0.00014,2]
[330000650,1718913046509,-151.0,0.00014,2]
[330000651,1718913046518,-151.0,0.00014,2]
[330000652,1718913046527,-151.0,0.00014,2]
[330000653,1718913046536,-151.0,0.00014,2]
[330000654,1718913046545,-289.171628,0.00014,2]
[330000655,1718913046554,-151.0,0.00014,2]
[330000656,1718913046563,-151.0,0.00014,2]
[330000657,1718913046572,-151.0,0.00014,2]
[330000658,1718913046581,-151.0,0.00014,2]
[330000659,1718913046590,-151.0,0.00014,2]
[330000660,1718913046599,-260.11,0.00014,2]
[330000661,1718913046609,-151.0,0.00014,2]
[330000662,1718913046618,-151.0,0.00014,2]
[330000663,1718913046627,-151.0,0.00014,2]
[330000664,1718913046637,-151.0,0.00014,2]
[330000665,1718913046645,-151.0,0.00014,2]
[330000666,1718913046654,-151.0,0.00014,2]
[330000667,1718913046663,-151.0,0.00014,2]
[330000668,1718913046673,-151.0,0.00014,2]
[330000669,1718913046683,-151.0,0.00014,2]
[330000670,1718913046692,-701.22438,0.00014,2]
[330000671,1718913046701,-701.22438,0.00014,2]
[330000672,1718913046710,-151.0,0.00014,2]
[330000673,1718913046720,-151.404052,0.00014,2]
[330000674,1718913046729,-151.0,0.00014,2]
[330000675,1718913046739,-151.0,0.00014,2]
[330000676,1718913046749,-529.421,0.00014,2]
[330000677,1718913046758,-528.689879,0.00014,2]
[330000678,1718913046767,-528.689879,0.00014,2]
[330000679,1718913046776,-151.0,0.00014,2]
[330000680,1718913046785,-151.0,0.00014,2]
[330000681,1718913046794,-586.789511,0.00014,2]
[330000682,1718913046803,-151.0,0.00014,2]
[330000683,1718913046813,-586.789511,0.00014,2]
[330000684,1718913046823,-183.138816,0.00014,2]
[330000685,1718913046832,-151.0,0.00014,2]
[330000687,1718913046841,-183.138816,0.00014,2]
[330000689,1718913046851,-151.0,0.00014,2]
[330000691,1718913046860,-175.761974,0.00014,2]
[330000694,1718913046870,-151.0,0.00014,2]
[330000696,1718913046880,-151.0,0.00014,2]
[330000698,1718913046890,-186.83957,0.00014,2]
[330000699,1718913046900,-151.0,0.00014,2]
[330000701,1718913046913,-151.0,0.00014,2]
[330000703,1718913046923,-151.0,0.00014,2]
[330000704,1718913046932,-151.0,0.00014,2]
[330000705,1718913046942,-151.0,0.00014,2]
[330000706,1718913046951,-151.0,0.00014,2]
[330000707,1718913046960,-151.0,0.00014,2]
[330000708,1718913046975,-153.23439,0.00014,2]
[330000709,1718913046983,-151.0,0.00014,2]
[330000710,1718913046993,-151.0,0.00014,2]
[330000711,1718913047002,-151.0,0.00014,2]
[330000712,1718913047013,-151.0,0.00014,2]
[330000714,1718913047022,-151.0,0.00014,2]
[330000715,1718913047031,-254.021431,0.00014,2]
[330000717,1718913047040,-151.0,0.00014,2]
[330000719,1718913047051,-254.021431,0.00014,2]
[330000721,1718913047060,-151.0,0.00014,2]
[330000723,1718913047070,-151.0,0.00014,2]
[330000725,1718913047079,-151.0,0.00014,2]
[330000727,1718913047088,-776.399212,0.00014,2]
[330000729,1718913047097,-776.399212,0.00014,2]
[330000732,1718913047107,-151.0,0.00014,2]
[330000734,1718913047116,-576.903029,0.00014,2]
[330000735,1718913047125,-576.903029,0.00014,2]
[330000738,1718913047135,-1575.676778,0.00014,2]
[330000739,1718913047146,-1575.676778,0.00014,2]
[330000741,1718913047155,-151.0,0.00014,2]
[330000743,1718913047164,-151.0,0.00014,2]
[330000746,1718913047174,-151.0,0.00014,2]
[330000747,1718913047183,-151.0,0.00014,2]
[330000750,1718913047192,-151.0,0.00014,2]
[330000752,1718913047201,-237.787334,0.00014,2]
[330000754,1718913047210,-151.0,0.00014,2]
[330000755,1718913047220,-3975.765945,0.00014,2]
[330000757,1718913047229,-237.787334,0.00014,2]
[330000758,1718913047238,-3975.765945,0.00014,2]
[330000759,1718913047247,-151.0,0.00014,2]
[330000760,1718913047256,-151.0,0.00014,2]
[330000761,1718913047266,-492.909162,0.00014,2]
[330000762,1718913047275,-492.909162,0.00014,2]
[330000763,1718913047284,-151.0,0.00014,2]
[330000764,1718913047293,-931.648117,0.00014,2]
[330000765,1718913047303,-151.0,0.00014,2]
[330000766,1718913047312,-931.648117,0.00014,2]
[330000767,1718913047321,-151.0,0.00014,2]
[330000768,1718913047330,-151.0,0.00014,2]
[330000769,1718913047339,-501.989281,0.00014,2]
[330000770,1718913047348,-231.089048,0.00014,2]
[330000771,1718913047357,-151.0,0.00014,2]
[330000772,1718913047366,-501.989281,0.00014,2]
[330000773,1718913047375,-231.089048,0.00014,2]
[330000774,1718913047384,-151.0,0.00014,2]
[330000775,1718913047395,-151.0,0.00014,2]
[330000776,1718913047404,-178.406215,0.00014,2]
[330000777,1718913047413,-178.406215,0.00014,2]
[330000778,1718913047422,-176.329463,0.00014,2]
[330000779,1718913047431,-151.0,0.00014,2]
[330000780,1718913047440,-203.417104,0.00014,2]
[330000781,1718913047450,-176.329463,0.00014,2]
[330000782,1718913047459,-203.417104,0.00014,2]
[330000783,1718913047468,-151.0,0.00014,2]
[330000784,1718913047477,-151.0,0.00014,2]
[330000785,1718913047486,-151.0,0.00014,2]
[330000786,1718913047495,-151.0,0.00014,2]
[330000787,1718913047504,-515.924529,0.00014,2]
[330000788,1718913047513,-515.924529,0.00014,2]
[330000789,1718913047522,-151.0,0.00014,2]
[330000790,1718913047532,-151.0,0.00014,2]
[330000791,1718913047540,-743.130881,0.00014,2]
[330000792,1718913047549,-743.130881,0.00014,2]
[330000793,1718913047558,-151.0,0.00014,2]
[330000794,1718913047567,-151.0,0.00014,2]
[330000795,1718913047576,-156.249627,0.00014,2]
[330000796,1718913047585,-151.0,0.00014,2]
[330000797,1718913047595,-151.0,0.00014,2]
[330000798,1718913047604,-156.249627,0.00014,2]
[330000799,1718913047613,-151.0,0.00014,2]
[330000800,1718913047622,-184.471316,0.00014,2]
[330000801,1718913047632,-151.0,0.00014,2]
[330000802,1718913047642,-219.34,0.00014,4]
[330000803,1718913047651,-1230.62543992,0.00014,2]
[330000804,1718913047660,-1230.62543992,0.00014,2]
[330000805,1718913047670,-1230.62543992,0.00014,2]
[330000806,1718913047679,-1230.62543992,0.00014,2]
[330000807,1718913047689,-1230.62543992,0.00014,2]
[330000808,1718913047698,-1230.62543992,0.00014,2]
[330000809,1718913047707,-1230.62543992,0.00014,2]
[330000810,1718913047716,-1230.62543992,0.00014,2]
[330000811,1718913047725,-1230.62543992,0.00014,2]
[330000812,1718913047735,-1230.62543992,0.00014,2]
[330000813,1718913047744,-1230.62543992,0.00014,2]
[330000814,1718913047754,-1230.62543992,0.00014,2]
[330000815,1718913047763,-1230.62543992,0.00014,2]
[330000816,1718913047773,-1230.62543992,0.00014,2]
[330000817,1718913047782,-1230.62543992,0.00014,2]
[330000818,1718913047792,-1230.62543992,0.00014,2]
[330000819,1718913047801,-1230.62543992,0.00014,2]
[330000820,1718913048013,-1230.62543992,0.00014,2]
[330000821,1718913048026,-1230.62543992,0.00014,2]
[330000822,1718913048036,-1230.62543992,0.00014,2]
[330000823,1718913048045,-1230.62543992,0.00014,2]
[330000824,1718913048058,-1230.62543992,0.00014,2]
[330000825,1718913048067,-1230.62543992,0.00014,2]
[330000826,1718913048076,-1230.62543992,0.00014,2]
[330000827,1718913048085,-1230.62543992,0.00014,2]
[330000828,1718913048095,-1230.62543992,0.00014,2]
[330000829,1718913048105,-1230.62543992,0.00014,2]
[330000830,1718913048114,-1230.62543992,0.00014,2]
[330000831,1718913048124,-1230.62543992,0.00014,2]
[330000832,1718913048133,-1230.62543992,0.00014,2]
[330000833,1718913048145,-1230.62543992,0.00014,2]
[330000834,1718913048154,-1230.62543992,0.00014,2]
[330000835,1718913048164,-1230.62543992,0.00014,2]
[330000836,1718913048174,-1230.62543992,0.00014,2]
[330000837,1718913048184,-1230.62543992,0.00014,2]
[330000838,1718913048193,-1230.62543992,0.00014,2]
[330000839,1718913048202,-1230.62543992,0.00014,2]
[330000840,1718913048212,-1230.62543992,0.00014,2]
[330000841,1718913048222,-1230.62543992,0.00014,2]
[330000842,1718913048231,-1230.62543992,0.00014,2]
[330000843,1718913048241,-1230.62543992,0.00014,2]
[330000844,1718913048250,-1230.62543992,0.00014,2]
[330000845,1718913048259,-1230.62543992,0.00014,2]
[330000846,1718913048268,-1230.62543992,0.00014,2]
[330000847,1718913048277,-1230.62543992,0.00014,2]
[330000848,1718913048287,-1230.62543992,0.00014,2]
[330000849,1718913048296,-1230.62543992,0.00014,2]
[330000850,1718913048306,-1230.62543992,0.00014,2]
[330000851,1718913048315,-1230.62543992,0.00014,2]
[330000852,1718913048324,-1230.62543992,0.00014,2]
[330000853,1718913048333,-1230.62543992,0.00014,2]
[330000854,1718913048342,-342.47512652,0.00014029,2]
[330000855,1718913048352,-355.0,0.000141,2]
[330000856,1718913048361,-1000.0,0.000141,2]
[330000857,1718913048370,-331.444974,0.00014125,2]
[330000858,1718913048379,-360.0,0.00014156,2]
[330000859,1718913048391,-5584.36594236,0.00014261,2]
[330000860,1718913048400,-420.0,0.00014262,2]
[330000861,1718913048409,-342.47512652,0.00014286,2]
[330000862,1718913048418,-331.444974,0.00014297,2]
[330000863,1718913048427,-210.0,0.00014304,2]
[330000864,1718913048436,-150.0,0.00014348,2]
[330000865,1718913048446,-150.0,0.00014348,2]
[330000866,1718913048455,-150.0,0.00014348,2]
[330000867,1718913048465,-150.0,0.00014348,2]
[330000868,1718913048475,-150.0,0.00014348,2]
[330000869,1718913048485,-150.0,0.00014348,2]
[330000870,1718913048495,-150.0,0.00014348,2]
[330000871,1718913048504,-150.0,0.00014348,2]
[330000872,1718913048515,-195.62,0.00014384,2]
[330000873,1718913048524,-331.444974,0.0001447,2]
[330000874,1718913048534,-1000.0,0.000145,2]
[330000875,1718913048544,-1000.0,0.000145,2]
[330000876,1718913048553,-1000.0,0.000145,2]
[330000877,1718913048562,-500.0,0.000145,2]
[330000878,1718913048571,-500.0,0.000145,2]
[330000879,1718913048580,-500.0,0.000145,2]
[330000880,1718913048590,-500.0,0.000145,2]
[330000881,1718913048599,-500.0,0.000145,2]
[330000882,1718913048609,-500.0,0.000145,2]
[330000883,1718913048618,-500.0,0.000145,2]
[330000884,1718913048627,-500.0,0.000145,2]
[330000885,1718913048637,-500.0,0.000145,2]
[330000886,1718913048651,-500.0,0.000145,2]
[330000887,1718913048660,-500.0,0.000145,2]
[330000888,1718913048669,-500.0,0.000145,2]
[330000889,1718913048679,-500.0,0.000145,2]
[330000890,1718913048688,-500.0,0.000145,2]
[330000891,1718913048697,-500.0,0.000145,2]
[330000892,1718913048706,-500.0,0.000145,2]
[330000893,1718913048715,-500.0,0.000145,2]
[330000894,1718913048725,-500.0,0.000145,2]
[330000895,1718913048735,-500.0,0.000145,2]
[330000896,1718913048744,-500.0,0.000145,2]
[330000897,1718913048754,-500.0,0.000145,2]
[330000898,1718913048764,-500.0,0.000145,2]
[330000899,1718913048773,-500.0,0.000145,2]
[330000900,1718913048783,-500.0,0.000145,2]
[330000901,1718913048792,-500.0,0.000145,2]
[330000902,1718913048801,-500.0,0.000145,2]
[330000903,1718913048811,-500.0,0.000145,2]
[330000904,1718913048820,-500.0,0.000145,2]
[330000905,1718913048829,-500.0,0.000145,2]
[330000906,1718913048839,-500.0,0.000145,2]
[330000907,1718913048849,-500.0,0.000145,2]
[330000908,1718913048858,-500.0,0.000145,2]
[330000909,1718913048867,-500.0,0.000145,2]
[330000910,1718913048876,-500.0,0.000145,2]
[330000911,1718913048886,-500.0,0.000145,2]
[330000912,1718913048898,-500.0,0.000145,2]
[330000913,1718913048907,-500.0,0.000145,2]
[330000914,1718913048916,-500.0,0.000145,2]
[330000915,1718913048926,-500.0,0.000145,2]
[330000916,1718913048935,-500.0,0.000145,2]
[330000917,1718913048944,-500.0,0.000145,2]
[330000918,1718913048953,-500.0,0.000145,2]
[330000919,1718913048963,-500.0,0.000145,2]
[330000920,1718913048975,-500.0,0.000145,2]
[330000921,1718913048985,-500.0,0.000145,2]
[330000922,1718913048994,-500.0,0.000145,2]
[330000923,1718913049004,-500.0,0.000145,2]
[330000924,1718913049015,-500.0,0.000145,2]
[330000925,1718913049025,-500.0,0.000145,2]
[330000926,1718913049035,-500.0,0.000145,2]
[330000927,1718913049044,-500.0,0.000145,2]
[330000928,1718913049054,-500.0,0.000145,2]
[330000929,1718913049064,-500.0,0.000145,2]
[330000930,1718913049073,-500.0,0.000145,2]
[330000931,1718913049083,-500.0,0.000145,2]
[330000932,1718913049092,-500.0,0.000145,2]
[330000933,1718913049101,-500.0,0.000145,2]
[330000934,1718913049111,-500.0,0.000145,2]
[330000935,1718913049120,-500.0,0.000145,2]
[330000936,1718913049130,-500.0,0.000145,2]
[330000937,1718913049141,-500.0,0.000145,2]
[330000938,1718913049151,-500.0,0.000145,2]
[330000939,1718913049160,-500.0,0.000145,2]
[330000940,1718913049169,-500.0,0.000145,2]
[330000941,1718913049178,-500.0,0.000145,2]
[330000942,1718913049187,-500.0,0.000145,2]
[330000943,1718913049196,-500.0,0.000145,2]
[330000944,1718913049205,-500.0,0.000145,2]
[330000945,1718913049214,-500.0,0.000145,2]
[330000946,1718913049223,-500.0,0.000145,2]
[330000947,1718913049232,-500.0,0.00014507,2]
[330000948,1718913049242,-500.0,0.00014507,2]
[330000949,1718913049251,-500.0,0.00014515,2]
[330000950,1718913049261,-500.0,0.00014515,2]
[330000951,1718913049270,-500.0,0.00014515,2]
[330000952,1718913049280,-500.0,0.0001452,2]
[330000953,1718913049289,-500.0,0.00014524,2]